bitfinex/quotes_ETHUSD_20250404
["timestamp","ask_amount","ask_price","bid_price","bid_amount"]
[1743772862834,0.7835,1785.1,1784.8,11.20532]
[1743772863029,0.7835,1785.1,1784.8,5.60255]
[1743772863239,6.38545,1785.1,1784.8,5.60255]
[1743772863534,0.7835,1785.1,1784.8,5.60255]
[1743772863726,0.7835,1785.1,1785.0,5.60224]
[1743772863925,0.7835,1785.1,1784.9,11.20482]
[1743772864097,6.38545,1785.1,1784.8,5.60281]
[1743772864430,6.38545,1785.1,1784.7,11.20632]
[1743772864595,0.7835,1785.1,1784.8,5.6028]
[1743772864997,7.023987,1785.1,1784.8,5.6028]
[1743772865198,0.7835,1785.1,1784.9,5.60241]
[1743772865394,6.79171374,1785.3,1785.0,5.60198]
[1743772865632,6.79171374,1785.3,1785.0,5.60199]
[1743772865633,1.19030374,1785.3,1785.0,5.60199]
[1743772865833,1.19030374,1785.3,1785.1,5.60182]
[1743772866412,1.19030374,1785.3,1785.0,5.60199]
[1743772866595,6.79178374,1785.3,1785.0,5.60199]
[1743772866799,0.7674,1785.3,1785.1,5.60189]
[1743772867022,0.7674,1785.3,1785.1,5.60187]
[1743772867223,0.7791,1785.5,1785.1,0.560187]
[1743772867397,0.7791,1785.8,1785.7,5.60004]
[1743772867601,6.38008,1786.1,1785.7,5.59983]
[1743772867828,4.47344539,1786.1,1785.5,0.05600086]
[1743772868042,11.20097,1785.6,1785.2,5.6014]
[1743772868343,3.0,1785.3,1785.0,11.20416]
[1743772868512,3.0,1785.3,1785.0,5.60208]
[1743772868716,0.21291885,1785.2,1785.1,5.60181]
[1743772868923,0.21291885,1785.2,1785.0,5.60208]
[1743772869405,0.21291885,1785.2,1785.1,5.60192]
[1743772869846,0.21291885,1785.2,1785.1,6.77833346]
[1743772870050,7.1847,1785.7,1785.1,6.72232]
[1743772870357,0.21379174,1785.2,1785.1,11.20384]
[1743772870507,7.1847,1785.7,1785.5,5.60058]
[1743772870707,7.1847,1785.7,1785.5,5.6005]
[1743772870953,0.21622378,1785.6,1785.4,5.60094]
[1743772871254,12.78476,1785.7,1785.3,11.20239]
[1743772871554,0.21591587,1785.5,1785.3,11.20239]
[1743772871842,0.7642,1785.9,1785.6,5.60035]
[1743772872052,12.02943,1785.9,1785.6,5.60035]
[1743772872215,12.02943,1785.9,1785.4,5.60081]
[1743772872216,0.7642,1785.8,1785.4,5.60081]
[1743772872412,6.3641,1785.8,1785.4,5.60081]
[1743772872626,7.64351,1785.8,1785.4,5.60081]
[1743772872847,5.60008,1785.7,1785.4,5.60081]
[1743772873044,5.60008,1785.7,1785.3,5.60125]
[1743772873350,5.60054,1785.6,1785.2,11.20306]
[1743772873852,5.60079,1785.5,1785.1,11.20364]
[1743772874052,0.560079,1785.4,1785.1,5.60176]
[1743772874252,0.77,1785.3,1784.7,5.60293]
[1743772874420,8.6024,1785.0,1784.6,5.60331]
[1743772874620,5.60265,1784.9,1784.5,11.2075]
[1743772874824,5.60265,1784.9,1784.6,5.60345]
[1743772875020,0.77,1785.2,1784.9,5.60231]
[1743772875341,5.60199,1785.1,1784.7,11.20593]
[1743772875757,0.77,1785.2,1784.3,6.02745349]
[1743772875915,0.77,1785.2,1785.0,5.60207]
[1743772876115,0.8068,1785.4,1785.2,5.60159]
[1743772876315,0.8068,1785.4,1785.3,5.60129]
[1743772876549,0.8068,1785.4,1785.2,5.60144]
[1743772877153,0.8068,1785.4,1785.3,5.60129]
[1743772877451,6.428,1785.6,1785.3,5.60129]
[1743772877452,0.8237,1785.6,1785.5,5.60067]
[1743772877648,12.02747,1785.9,1785.5,5.60039]
[1743772877649,0.8237,1785.9,1785.5,5.60039]
[1743772878019,6.42312,1785.9,1785.6,5.60025]
[1743772878275,0.8237,1785.9,1785.6,5.60025]
[1743772878421,6.42313,1785.9,1785.6,5.60025]
[1743772878760,0.8237,1785.9,1785.6,5.60019]
[1743772879135,0.8237,1785.9,1785.5,5.60062]
[1743772879317,6.42339,1785.9,1785.5,5.60054]
[1743772879536,6.427,1786.0,1785.8,5.59973]
[1743772879731,1.18834726,1786.1,1785.2,5.60161]
[1743772879732,25.9494,1786.3,1786.0,11.1981]
[1743772879941,25.9494,1786.3,1785.5,5.60059]
[1743772879942,6.81139,1786.5,1786.2,5.59847]
[1743772880150,0.7514,1786.5,1786.2,11.19676]
[1743772880378,0.7514,1786.5,1786.3,5.59801]
[1743772880536,0.7514,1786.5,1786.3,5.598]
[1743772880737,0.7514,1786.5,1786.3,11.19604]
[1743772880937,0.7514,1786.5,1786.4,5.59785]
[1743772881273,0.8108,1786.7,1786.5,5.59742]
[1743772881485,3.8108,1786.7,1786.3,5.59814]
[1743772881635,1.797879,1786.7,1786.3,5.59814]
[1743772881836,6.40788,1786.7,1786.3,5.59814]
[1743772882077,12.00499,1786.7,1786.3,5.59814]
[1743772882373,5.59765,1786.5,1786.1,5.59865]
[1743772882588,5.59765,1786.5,1785.8,5.59973]
[1743772882589,3.8108,1786.7,1786.4,5.59764]
[1743772882736,3.8108,1786.7,1786.4,11.19531]
[1743772882938,0.8108,1786.7,1786.5,5.59725]
[1743772883373,0.22377378,1786.6,1786.5,5.59725]
[1743772883734,0.8108,1786.7,1786.6,5.59722]
[1743772884352,0.8108,1786.7,1786.5,5.59725]
[1743772884876,0.8108,1786.7,1786.4,11.19553]
[1743772885176,0.8108,1786.7,1786.4,5.59771]
[1743772885863,0.8108,1786.7,1786.2,5.59835]
[1743772885864,5.59741,1786.6,1786.2,5.59835]
[1743772886042,11.19485,1786.6,1786.2,5.59835]
[1743772886385,5.59758,1786.5,1786.1,5.59868]
[1743772886680,6.40773,1786.7,1786.2,5.59817]
[1743772886850,5.59753,1786.5,1786.1,5.59874]
[1743772887191,6.157703,1786.4,1786.0,5.59897]
[1743772887342,0.559753,1786.4,1786.1,5.59876]
[1743772887541,0.559753,1786.4,1786.1,11.19726]
[1743772887889,0.559753,1786.4,1786.1,5.5986]
[1743772888098,0.559753,1786.4,1785.9,5.59937]
[1743772888243,0.8108,1786.7,1786.1,0.05598524]
[1743772888444,0.8108,1786.7,1786.5,5.59738]
[1743772888687,0.8566,1786.9,1786.7,5.59685]
[1743772888857,0.8566,1786.9,1786.7,5.59671]
[1743772889060,0.05,1786.9,1786.7,5.59671]
[1743772889367,5.6464,1786.9,1786.5,5.59737]
[1743772889683,4.335842,1786.9,1786.6,5.597]
[1743772889981,4.335842,1786.9,1786.5,5.59751]
[1743772889982,9.932242,1786.9,1786.5,5.59751]
[1743772890186,5.59696,1786.7,1786.3,5.59813]
[1743772890491,5.59724,1786.6,1786.2,5.59832]
[1743772890843,0.8233,1786.4,1786.1,11.19743]
[1743772891042,7.063263,1786.4,1786.0,5.59906]
[1743772891281,1.465383,1786.4,1786.2,5.59837]
[1743772891476,1.465383,1786.4,1786.1,5.59868]
[1743772891682,1.465383,1786.4,1786.2,5.59836]
[1743772892066,1.465383,1786.4,1786.1,5.59868]
[1743772892509,1.465383,1786.4,1786.2,5.59821]
[1743772892800,7.063333,1786.4,1786.0,5.5988]
[1743772892993,5.59853,1786.2,1785.9,5.59936]
[1743772893196,6.3046033,1786.3,1785.9,11.19872]
[1743772893371,5.5986,1786.2,1785.8,5.59967]
[1743772893571,0.8311,1786.1,1785.9,5.59914]
[1743772893800,0.8311,1786.1,1785.8,5.59967]
[1743772894006,7.072863,1786.1,1785.8,5.59967]
[1743772894205,7.072863,1786.1,1785.7,11.19994]
[1743772894513,5.59916,1786.0,1785.7,5.59993]
[1743772894673,5.59916,1786.0,1785.7,5.6]
[1743772894871,12.01616,1786.0,1785.6,11.2005]
[1743772895087,13.9250653,1786.0,1785.6,11.20045]
[1743772895287,8.3259053,1786.0,1785.5,5.60067]
[1743772895513,8.3259053,1786.0,1785.7,5.5999]
[1743772895702,13.9250553,1786.0,1785.6,11.2006]
[1743772895908,13.9250553,1786.0,1785.6,11.20046]
[1743772896209,1.39250553,1785.9,1785.6,5.60019]
[1743772896410,5.59982,1785.8,1785.4,5.6007]
[1743772896612,6.3629,1785.7,1785.3,5.60109]
[1743772896812,5.60069,1785.5,1785.1,5.60192]
[1743772897011,12.7817,1785.4,1785.0,5.60208]
[1743772897305,9.87963,1785.3,1784.9,5.60253]
[1743772897508,9.87963,1785.3,1784.9,11.20488]
[1743772897808,4.27817,1785.3,1785.0,5.6021]
[1743772897995,15.48115,1785.3,1784.9,5.60235]
[1743772898192,0.20692348,1785.2,1785.1,5.60186]
[1743772899210,0.20692348,1785.2,1785.0,5.60213]
[1743772899507,6.2990914,1785.2,1784.8,5.60264]
[1743772899708,0.8284,1785.1,1785.0,5.60224]
[1743772899896,0.20692348,1785.2,1785.1,5.60192]
[1743772900102,0.8284,1785.3,1785.1,5.60192]
[1743772900825,0.8284,1785.3,1785.0,5.60197]
[1743772901109,0.8284,1785.3,1785.0,11.20402]
[1743772901498,2.11305,1785.3,1785.0,5.60197]
[1743772901697,0.8284,1785.3,1785.0,11.20408]
[1743772901888,9.4297,1785.3,1784.9,5.60245]
[1743772902089,9.4297,1785.3,1784.9,11.20489]
[1743772902289,9.4297,1785.3,1784.9,5.60244]
[1743772902608,4.24368536,1785.3,1785.0,5.60212]
[1743772902812,4.24368536,1785.3,1784.9,5.60238]
[1743772902992,9.84509536,1785.3,1784.9,5.60238]
[1743772903330,12.0314069,1785.3,1784.9,11.20477]
[1743772903476,12.0314069,1785.3,1784.9,5.60238]
[1743772903677,12.0314069,1785.3,1784.9,11.2048]
[1743772903876,6.4299969,1785.3,1784.9,5.60238]
[1743772904112,6.4299969,1785.3,1785.0,5.6021]
[1743772904315,0.64299969,1785.2,1784.9,5.60248]
[1743772904724,0.64299969,1785.2,1784.9,5.60244]
[1743772905090,6.24465969,1785.2,1784.9,5.60244]
[1743772905289,0.64299969,1785.2,1784.9,11.20487]
[1743772905520,4.24368536,1785.3,1785.1,5.6018]
[1743772905690,10.65868536,1785.3,1785.1,5.6018]
[1743772906023,10.65868536,1785.3,1785.0,5.6022]
[1743772906186,10.65868536,1785.3,1785.1,5.60186]
[1743772906684,10.65868536,1785.3,1785.1,5.60182]
[1743772907101,11.66039,1785.6,1785.2,5.60161]
[1743772907308,6.415,1785.4,1785.2,5.60144]
[1743772907625,3.7904,1785.5,1785.3,5.60129]
[1743772907812,15.80624,1785.5,1785.1,5.60188]
[1743772908125,15.80624,1785.5,1785.1,5.6018]
[1743772908345,17.992863,1785.5,1785.1,11.2036]
[1743772908508,12.392023,1785.5,1785.2,5.60159]
[1743772909631,17.992713,1785.5,1785.1,5.60189]
[1743772909841,5.6011,1785.4,1785.0,5.60219]
[1743772910001,0.7918,1785.2,1785.0,5.60219]
[1743772910201,0.7918,1785.2,1785.0,11.20429]
[1743772911019,0.7918,1785.2,1785.1,5.60192]
[1743772911935,3.7916,1785.4,1785.1,11.20384]
[1743772912102,5.5909943,1785.4,1785.1,5.60178]
[1743772912300,3.7916,1785.4,1785.2,5.6016]
[1743772912505,10.2056,1785.4,1785.3,5.60129]
[1743772912721,10.2056,1785.4,1785.2,5.6016]
[1743772912906,10.2056,1785.4,1785.1,11.20369]
[1743772913229,0.20238419,1785.3,1785.1,11.20369]
[1743772913406,10.2056,1785.4,1785.1,5.60182]
[1743772913748,0.20273073,1785.3,1785.2,5.60161]
[1743772914244,0.20247083,1785.3,1785.1,5.60181]
[1743772914442,10.2056,1785.4,1785.2,5.60161]
[1743772914654,5.80414073,1785.3,1784.9,5.60234]
[1743772914850,0.20273073,1785.3,1784.7,5.60311]
[1743772915011,0.20273073,1785.3,1785.1,5.60166]
[1743772915212,11.22616,1785.4,1785.1,5.60166]
[1743772915412,0.20290399,1785.3,1785.1,5.60166]
[1743772915640,11.22616,1785.4,1785.1,5.60166]
[1743772915824,10.2056,1785.4,1785.3,5.60129]
[1743772916025,7.2056,1785.4,1785.3,5.60129]
[1743772916333,0.7916,1785.4,1785.3,5.60129]
[1743772916652,0.7787,1785.9,1785.4,5.60098]
[1743772916855,0.7787,1785.9,1785.6,5.60007]
[1743772917143,0.7787,1785.9,1785.8,5.59973]
[1743772917311,0.7787,1785.9,1785.7,5.59988]
[1743772918365,6.05999,1786.1,1785.9,5.59939]
[1743772918647,6.05999,1786.1,1785.9,11.19867]
[1743772918810,25.9491,1786.2,1786.1,5.59879]
[1743772919017,25.9491,1786.2,1786.0,5.59907]
[1743772919418,25.9491,1786.2,1785.7,5.6]
[1743772919419,6.86269,1786.4,1786.2,5.59843]
[1743772919646,8.53136777,1786.4,1785.4,9.721186]
[1743772919843,5.59892,1786.1,1785.8,5.59953]
[1743772920043,0.7515,1786.0,1785.7,11.20006]
[1743772920246,5.59942,1785.9,1785.6,5.60027]
[1743772920548,5.59978,1785.8,1785.5,5.60037]
[1743772920752,0.559978,1785.7,1785.4,5.60087]
[1743772921044,0.559978,1785.7,1785.4,5.60095]
[1743772921253,0.7517,1785.6,1785.3,11.20236]
[1743772921411,3.0,1785.8,1785.5,5.60045]
[1743772921615,0.8137,1785.8,1785.6,5.60012]
[1743772922044,3.8137,1785.8,1785.6,5.60012]
[1743772922262,4.79668573,1785.8,1785.6,5.60012]
[1743772922458,4.79668573,1785.8,1785.5,5.60066]
[1743772922459,4.79668573,1785.8,1785.4,5.60087]
[1743772922764,5.60006,1785.7,1785.3,5.60108]
[1743772923165,0.8137,1785.8,1785.0,5.60224]
[1743772923460,5.60048,1785.6,1785.2,5.60142]
[1743772923757,6.4135,1785.8,1785.4,5.60096]
[1743772923957,6.409,1785.7,1785.5,5.60061]
[1743772924165,6.409,1785.7,1785.4,5.60093]
[1743772924368,12.00924,1785.7,1785.3,11.20248]
[1743772924551,12.00924,1785.7,1785.4,5.60091]
[1743772924752,6.409,1785.7,1785.5,5.60067]
[1743772924927,12.13420301,1785.8,1785.5,5.60067]
[1743772925131,12.13420301,1785.8,1785.6,5.6003]
[1743772926061,6.8135303,1785.7,1785.4,5.60095]
[1743772926269,10.2217,1785.8,1785.4,5.60098]
[1743772926432,21.42172,1785.8,1785.4,5.60098]
[1743772927127,15.82169,1785.8,1785.5,5.60063]
[1743772927325,10.2217,1785.8,1785.5,5.60053]
[1743772927547,11.84580148,1785.8,1785.5,5.60053]
[1743772927757,11.84480148,1785.8,1785.5,11.2011]
[1743772927957,0.7814,1786.0,1785.3,5.60127]
[1743772928127,0.7814,1786.0,1785.9,5.59941]
[1743772928931,0.7814,1786.0,1785.8,5.59959]
[1743772929132,6.3806,1786.0,1785.7,5.60001]
[1743772929379,0.63806,1785.9,1785.6,5.60035]
[1743772929524,0.63806,1785.9,1785.7,5.59982]
[1743772929747,6.05999,1786.1,1785.9,5.59941]
[1743772930042,3.0,1786.0,1785.5,5.60052]
[1743772930278,6.41223,1785.9,1785.5,5.60052]
[1743772930479,5.59982,1785.8,1785.4,5.60084]
[1743772930686,0.8126,1785.9,1785.6,5.60034]
[1743772930982,5.59982,1785.8,1785.5,5.60056]
[1743772931384,11.19971,1785.8,1785.5,5.60056]
[1743772931579,12.400941,1785.8,1785.5,5.60056]
[1743772931783,6.801051,1785.8,1785.5,5.60055]
[1743772931990,12.400961,1785.8,1785.5,5.60055]
[1743772932183,6.801011,1785.8,1784.9,5.60243]
[1743772932388,6.801011,1785.8,1785.4,11.20147]
[1743772932389,18.805921,1785.8,1785.4,11.20147]
[1743772932586,7.4806521,1785.7,1785.4,5.60068]
[1743772932777,0.7894,1785.6,1785.3,5.60127]
[1743772932953,6.38989,1785.6,1785.3,5.60127]
[1743772933152,11.20163,1785.5,1785.1,5.60187]
[1743772933364,5.60117,1785.4,1785.0,5.6022]
[1743772933555,5.60209,1785.1,1784.7,5.603]
[1743772933755,11.20424,1785.1,1784.7,5.603]
[1743772933955,5.60233,1785.0,1784.7,5.603]
[1743772934386,5.60233,1785.0,1784.6,5.60345]
[1743772934601,5.60233,1785.0,1784.6,11.20683]
[1743772934895,5.60225,1785.0,1784.6,5.60339]
[1743772935062,5.60297,1784.8,1784.4,5.60402]
[1743772935397,8.6033,1784.7,1784.3,5.60424]
[1743772935583,8.6033,1784.7,1784.3,11.20851]
[1743772935777,10.664327,1784.7,1784.3,11.20851]
[1743772936001,5.061027,1784.7,1784.1,0.6]
[1743772936319,12.00703,1784.8,1784.4,5.60401]
[1743772936519,12.00703,1784.8,1784.4,11.208]
[1743772936819,0.7807,1784.8,1784.1,0.6]
[1743772936980,5.60352,1784.6,1784.1,6.20502]
[1743772937185,6.36386,1784.3,1784.1,0.6]
[1743772937398,0.636386,1784.2,1784.1,0.6]
[1743772938431,6.241136,1784.2,1784.1,0.6]
[1743772938792,6.66214159,1784.2,1784.1,0.6]
[1743772938998,9.66214159,1784.2,1784.1,0.6]
[1743772939200,6.42781,1783.8,1783.3,11.21477]
[1743772939399,12.01136,1783.7,1783.3,11.21467]
[1743772939729,6.405,1783.7,1783.4,5.60706]
[1743772940291,6.405,1783.7,1783.4,5.60719]
[1743772940523,6.83537434,1783.7,1783.4,5.60719]
[1743772941297,6.83537434,1783.7,1782.8,0.9498]
[1743772941298,9.05999,1783.6,1782.8,0.9498]
[1743772941535,9.05999,1783.6,1783.2,5.60769]
[1743772941536,0.8128,1783.5,1783.2,5.60769]
[1743772942042,0.8128,1783.5,1783.1,5.60819]
[1743772942207,6.41987,1783.5,1783.1,5.60819]
[1743772942405,0.8128,1783.5,1783.2,5.60785]
[1743772942601,12.46499,1783.6,1783.4,5.60726]
[1743772942801,12.46499,1783.6,1783.3,5.60758]
[1743772943040,12.46499,1783.6,1783.1,5.60805]
[1743772943339,0.15174808,1783.5,1783.2,5.60762]
[1743772944034,0.15174808,1783.5,1783.0,5.6085]
[1743772944209,0.15174808,1783.5,1783.3,5.60744]
[1743772944605,0.15174808,1783.5,1783.2,5.60789]
[1743772945138,0.15174808,1783.5,1783.1,5.608]
[1743772945316,0.15174808,1783.5,1783.2,5.60766]
[1743772945516,0.15174808,1783.5,1783.3,5.60726]
[1743772945924,0.15174808,1783.5,1783.4,5.60726]
[1743772947048,6.405,1783.8,1783.6,5.60662]
[1743772947250,6.405,1783.8,1783.7,5.60632]
[1743772947555,6.405,1783.8,1783.6,5.60662]
[1743772947753,6.405,1783.8,1783.6,5.60642]
[1743772947920,25.211,1784.0,1783.8,5.606]
[1743772948111,6.05999,1784.2,1783.9,5.60569]
[1743772948307,6.05999,1784.2,1783.8,1.17728831]
[1743772948308,6.405,1784.4,1784.2,5.60453]
[1743772948546,6.405,1784.4,1784.3,5.60443]
[1743772948721,6.05999,1784.6,1784.3,11.20886]
[1743772948918,6.05999,1784.6,1784.4,5.60396]
[1743772949123,6.05999,1784.6,1784.3,11.20869]
[1743772949318,6.05999,1784.6,1784.5,5.60381]
[1743772949927,25.214,1784.8,1784.4,5.6041]
[1743772949928,25.214,1784.8,1784.7,5.60318]
[1743772951046,6.05999,1785.0,1784.9,5.60255]
[1743772951243,6.83509,1785.2,1785.0,5.602]
[1743772951442,6.83509,1785.2,1785.1,5.60192]
[1743772951649,8.158899,1785.2,1785.1,5.60192]
[1743772951821,7.383799,1785.2,1785.1,5.60192]
[1743772952023,6.05999,1785.2,1785.1,5.60192]
[1743772953114,0.8017,1785.5,1785.4,5.60098]
[1743772953343,0.8017,1785.5,1785.3,5.60119]
[1743772953549,0.8017,1785.5,1785.3,5.60118]
[1743772953728,0.05,1785.9,1785.7,5.60004]
[1743772954262,0.05,1785.9,1785.6,5.60034]
[1743772954415,5.64946,1785.9,1785.6,5.60034]
[1743772954614,0.05,1785.9,1785.6,5.60034]
[1743772954834,0.05,1785.9,1785.7,5.59995]
[1743772955034,0.39735473,1785.9,1785.6,5.60034]
[1743772955240,14.65986,1785.8,1785.3,5.60128]
[1743772955536,0.761,1785.6,1785.3,5.60128]
[1743772955741,7.162,1785.6,1785.3,5.60128]
[1743772955945,5.60081,1785.5,1785.1,5.6019]
[1743772956145,0.560081,1785.4,1785.1,5.60187]
[1743772956460,6.620071,1785.4,1785.1,5.60178]
[1743772957138,6.620071,1785.4,1785.1,5.60176]
[1743772957360,6.620071,1785.4,1785.2,5.60144]
[1743772957727,6.620071,1785.4,1785.1,5.60176]
[1743772957925,0.6620071,1785.3,1785.0,5.60223]
[1743772958331,0.12356496,1785.2,1785.0,5.60223]
[1743772958532,0.12356496,1785.2,1785.1,5.60192]
[1743772959723,6.05999,1785.4,1785.1,5.60192]
[1743772959926,0.12662837,1785.2,1785.1,5.60192]
[1743772960142,11.6611,1785.4,1785.0,11.2044]
[1743772960343,0.12706168,1785.2,1785.0,11.2044]
[1743772960562,1.16611,1785.3,1785.0,5.6022]
[1743772960767,0.12726583,1785.1,1784.9,11.20492]
[1743772960969,9.7674,1785.3,1785.0,5.60222]
[1743772961175,0.8327,1785.1,1784.8,5.60272]
[1743772961379,6.43464,1785.1,1784.7,5.60296]
[1743772961569,6.89269,1785.1,1784.5,5.60377]
[1743772961743,6.89269,1785.1,1784.8,11.20536]
[1743772961944,6.05999,1785.1,1784.9,5.60254]
[1743772962274,6.05999,1785.1,1785.0,5.60224]
[1743772963358,6.05999,1785.1,1785.0,6.7227]
[1743772963550,0.05,1785.9,1785.8,5.59973]
[1743772964446,0.05,1785.9,1785.8,5.65572091]
[1743772964647,0.05,1785.9,1785.8,5.59973]
[1743772965703,0.05,1785.9,1785.7,5.59991]
[1743772965853,0.05,1785.9,1785.4,0.3998]
[1743772966197,5.59973,1785.8,1785.5,5.6005]
[1743772966356,5.59973,1785.8,1785.4,5.60095]
[1743772966357,17.25971,1785.8,1785.4,5.60095]
[1743772966558,6.05999,1785.8,1785.4,0.05600658]
[1743772966744,6.05999,1785.8,1785.7,5.60004]
[1743772967477,6.05999,1785.8,1785.6,5.60022]
[1743772967677,7.230931,1785.8,1785.5,11.20119]
[1743772968053,7.230931,1785.8,1785.5,11.2011]
[1743772968384,7.230931,1785.8,1785.7,5.60004]
[1743772968582,6.05999,1785.8,1785.7,5.60004]
[1743772968761,6.05999,1785.8,1785.6,5.60022]
[1743772968961,6.05999,1785.8,1785.6,5.6002]
[1743772969278,6.05999,1785.8,1785.7,5.60004]
[1743772969985,6.05999,1785.8,1785.6,5.99999]
[1743772970190,6.05999,1785.8,1785.6,5.60019]
[1743772970191,6.670989,1785.8,1785.6,5.60019]
[1743772971095,6.670989,1785.8,1785.3,0.3998]
[1743772971295,6.670989,1785.8,1785.6,5.60012]
[1743772971679,6.670989,1785.8,1785.6,11.20032]
[1743772971878,6.670989,1785.8,1785.6,5.60012]
[1743772972402,6.670989,1785.8,1785.6,5.60035]
[1743772972763,6.670989,1785.8,1785.6,11.20058]
[1743772972962,6.05999,1785.8,1785.7,5.60004]
[1743772973165,6.81609,1785.8,1785.6,5.60022]
[1743772973470,6.92805759,1785.8,1785.6,5.60022]
[1743772974081,6.17195759,1785.8,1785.7,5.60004]
[1743772975104,0.11196759,1785.8,1785.7,5.99984]
[1743772975280,0.05,1785.9,1785.8,5.59973]
[1743772975804,0.17545315,1785.9,1785.8,5.65571998]
[1743772976100,0.17529722,1785.9,1785.8,5.59973]
[1743772976289,0.7624,1785.8,1785.1,6.55164]
[1743772976489,5.60011,1785.7,1785.3,5.60104]
[1743772976677,0.68660639,1785.6,1785.3,11.20222]
[1743772976883,0.68660639,1785.6,1785.3,5.60104]
[1743772977080,5.60071,1785.5,1785.2,5.60157]
[1743772977376,0.12584647,1785.4,1785.2,5.60147]
[1743772977581,0.12584647,1785.4,1785.3,5.60129]
[1743772977788,6.160501,1785.6,1785.2,5.60147]
[1743772977993,0.12584647,1785.4,1785.2,5.60147]
[1743772978196,3.8274,1785.4,1785.0,5.60211]
[1743772978378,0.12535607,1785.3,1784.9,0.3998]
[1743772978577,3.8274,1785.4,1785.3,5.60129]
[1743772978779,7.0040501,1785.5,1785.4,5.60098]
[1743772978999,6.388,1785.5,1785.4,5.60098]
[1743772979193,0.7825,1785.6,1785.5,5.60067]
[1743772979674,13.20879,1785.8,1785.6,5.60025]
[1743772980023,5.60021,1785.7,1785.3,11.20256]
[1743772980369,19.2254639,1785.8,1785.5,5.60063]
[1743772980570,22.01295729,1785.8,1785.5,5.60063]
[1743772980809,5.6003,1785.7,1785.3,5.60114]
[1743772980965,22.01293729,1785.8,1785.5,5.60064]
[1743772981170,5.60026,1785.7,1785.3,5.60126]
[1743772981406,0.7985,1785.6,1785.0,5.60223]
[1743772981592,3.0,1785.5,1784.9,0.3998]
[1743772981793,6.387,1785.4,1785.1,5.60174]
[1743772982104,6.387,1785.4,1785.3,5.60129]
[1743772982309,6.85849,1785.6,1785.5,5.60067]
[1743772982607,6.85849,1785.6,1785.4,5.60085]
[1743772982797,6.85849,1785.6,1785.4,11.20168]
[1743772983100,6.85849,1785.6,1785.4,5.60083]
[1743772983308,12.49699,1785.9,1785.5,5.60067]
[1743772983486,6.10999,1785.9,1785.8,5.59973]
[1743772984704,6.10999,1785.9,1785.7,5.5999]
[1743772985312,6.10999,1785.9,1785.7,5.59989]
[1743772985517,0.05,1785.9,1785.7,6.159879]
[1743772985680,0.05,1785.9,1785.7,5.59989]
[1743772986106,0.05,1785.9,1785.7,11.19982]
[1743772986936,0.05,1785.9,1785.8,5.65572646]
[1743772987141,1e-05,1785.9,1785.8,12.74775957]
[1743772987306,1e-05,1785.9,1785.8,13.24177539]
[1743772987502,6.05999,1786.6,1786.5,5.59753]
[1743772988141,6.19052288,1786.6,1786.5,5.59753]
[1743772988328,6.19052288,1786.6,1785.8,3.41015594]
[1743772988529,6.19052288,1786.6,1785.7,3.69224539]
[1743772988530,6.39983,1786.2,1785.7,5.59992]
[1743772988725,0.10543037,1786.1,1785.9,5.59929]
[1743772988926,13.24629,1786.2,1785.9,5.59929]
[1743772989127,0.10637403,1786.1,1785.9,5.59928]
[1743772989435,13.24629,1786.2,1785.9,5.59928]
[1743772989598,13.24629,1786.2,1785.9,6.77516778]
[1743772989803,6.05999,1786.2,1786.1,5.59879]
[1743772990841,9.87899,1786.7,1786.4,5.59785]
[1743772991056,6.05999,1786.7,1786.5,5.59738]
[1743772991254,3.0,1786.8,1786.6,5.59709]
[1743772991664,3.0,1786.8,1786.6,11.19417]
[1743772991825,0.05,1786.9,1786.8,5.59659]
[1743772992258,0.05,1786.9,1786.8,5.6525494]
[1743772992567,0.05,1786.9,1786.8,5.59659]
[1743772994268,0.05,1786.9,1786.8,5.65254683]
[1743772994569,0.05,1786.9,1786.8,5.59659]
[1743772994778,0.05,1786.9,1786.8,6.755907]
[1743772995079,0.05,1786.9,1786.8,6.81186387]
[1743772995364,0.05,1786.9,1786.8,6.755907]
[1743772996564,0.05,1786.9,1786.8,5.59659]
[1743772996772,5.64646,1786.9,1786.5,5.59733]
[1743772996920,0.05,1786.9,1786.6,5.59712]
[1743772997121,0.05,1786.9,1786.6,5.59704]
[1743772997362,0.05,1786.9,1786.5,5.59748]
[1743772997560,11.65682,1786.8,1786.4,5.59782]
[1743772997765,17.25359,1786.8,1786.4,5.59782]
[1743772997966,5.72278633,1786.7,1786.3,5.59812]
[1743772998140,6.47688633,1786.7,1786.3,5.59802]
[1743772998340,0.87971633,1786.7,1786.5,5.59741]
[1743772998781,0.87971633,1786.7,1786.4,5.59785]
[1743772999143,0.12561633,1786.7,1786.6,5.59722]
[1743772999547,6.05999,1786.8,1786.7,5.59691]
[1743772999778,0.05,1786.9,1786.8,5.59659]
[1743772999982,0.05,1786.9,1786.8,6.75592]
[1743773000176,0.05,1786.9,1786.7,5.59678]
[1743773001174,0.05,1786.9,1786.7,5.59677]
[1743773001550,0.8015,1786.9,1786.6,5.59718]
[1743773001756,0.8015,1786.9,1786.6,5.59713]
[1743773002146,5.59672,1786.8,1786.4,5.99754]
[1743773002344,11.19353,1786.8,1786.4,6.2574722]
[1743773002679,5.59672,1786.8,1786.4,11.8551522]
[1743773002979,5.59697,1786.7,1786.4,6.2574222]
[1743773003389,11.65731,1786.6,1786.2,5.59832]
[1743773003567,5.59799,1786.4,1786.0,5.59899]
[1743773003750,5.59816,1786.3,1785.9,6.719206]